bitfinex-derivatives/quotes_ETHF0:USTF0_20250709
["timestamp","ask_amount","ask_price","bid_price","bid_amount"]
[1752089945585,0.7341717,2743.9,2743.8,2.317401]
[1752089945782,0.0054617,2743.9,2743.8,3.046141]
[1752089946089,0.0054617,2743.9,2743.8,5.17498246]
[1752089946485,1.7193717,2743.9,2743.8,2.317401]
[1752089946686,1.82196,2743.7,2743.3,4.26231916]
[1752089946885,0.7289,2743.2,2743.1,3.19537792]
[1752089947387,1.8223,2743.2,2742.3,10.44589931]
[1752089947690,0.72901,2742.8,2742.6,0.72906]
[1752089947886,0.72897,2743.0,2742.3,5.82224875]
[1752089948085,0.72897,2743.0,2742.8,0.729]
[1752089948281,3.2078,2743.4,2743.0,0.72895]
[1752089948487,1.3286,2743.6,2742.9,3.2078]
[1752089948688,2.3192617,2743.9,2743.8,0.72874]
[1752089949790,2.3192617,2743.9,2743.5,1.82204]
[1752089950186,2.3200617,2743.9,2743.8,0.72874]
[1752089950884,3.0487917,2743.9,2743.7,0.72875]
[1752089951086,2.3200617,2743.9,2743.8,0.72874]
[1752089951387,3.2078,2744.3,2744.2,0.72863]
[1752089951593,4.4217,2744.3,2744.2,0.72863]
[1752089951793,0.986,2745.1,2744.1,5.82224875]
[1752089951994,3.2078,2745.2,2745.1,0.72839]
[1752089952193,4.1938,2745.2,2744.5,1.82139]
[1752089952393,1.2139,2745.1,2745.0,0.72842]
[1752089952694,2.1999,2745.1,2744.0,3.2078]
[1752089952888,2.1999,2745.1,2745.0,0.72842]
[1752089953082,1.2139,2745.1,2745.0,0.72842]
[1752089954893,0.6533,2745.3,2745.2,0.72837]
[1752089955295,1.997,2745.3,2745.2,0.72837]
[1752089955895,3.2078,2745.7,2745.6,0.72827]
[1752089956197,4.1938,2745.7,2745.6,0.72827]
[1752089956493,4.5515,2745.7,2745.6,0.72827]
[1752089956892,5.5375,2745.7,2745.0,0.0054617]
[1752089957095,3.2078,2745.4,2745.2,0.72838]
[1752089957295,5.48164875,2745.3,2745.0,0.0054617]
[1752089957494,5.48164875,2745.3,2744.3,3.2078]
[1752089957495,3.2078,2745.1,2744.3,3.2078]
[1752089957798,3.2078,2744.5,2744.3,4.25318863]
[1752089958092,1.2247,2744.4,2744.3,4.98180863]
[1752089958297,1.2247,2744.4,2744.3,0.72862]
[1752089958500,1.2247,2744.4,2743.8,6.07716725]
[1752089958696,1.95329,2744.4,2744.2,0.72862]
[1752089958891,1.2247,2744.4,2744.3,1.61482956]
[1752089959295,1.95329,2744.4,2744.3,1.61482956]
[1752089959694,9.56773875,2744.4,2744.3,1.61482956]
[1752089960093,0.72871,2744.0,2743.5,4.25529725]
[1752089960298,0.72876,2743.8,2743.4,4.25529725]
[1752089960493,3.93658,2743.7,2743.4,4.25529725]
[1752089960697,0.6381,2743.6,2743.4,4.25529725]
[1752089960893,2.61444875,2744.1,2743.8,0.72874]
[1752089960894,0.0054617,2743.9,2743.8,0.72874]
[1752089962996,0.0054617,2743.9,2743.8,4.26058361]
[1752089963199,0.0054617,2743.9,2743.7,0.72874]
[1752089963498,3.2132617,2743.9,2743.4,8.53299931]
[1752089963694,4.1992617,2743.9,2743.7,4.25761492]
[1752089963895,0.986,2743.8,2743.6,4.25761492]
[1752089964097,0.72877,2743.7,2743.5,4.25761492]
[1752089964289,2.2704,2743.6,2743.3,4.25761492]
[1752089964490,0.72891,2743.2,2742.9,4.25761492]
[1752089964693,0.986,2743.1,2742.9,4.25761492]
[1752089964891,2.99934,2743.1,2742.9,4.25761492]
[1752089965094,4.1938,2743.0,2742.8,4.25761492]
[1752089965291,2.01338,2742.9,2742.8,4.25761492]
[1752089965499,0.986,2743.3,2742.5,1.82272]
[1752089965709,0.986,2743.3,2742.5,4.43716875]
[1752089966003,0.986,2743.3,2742.8,0.72899]
[1752089966202,1.71489,2743.3,2742.5,1.2436]
[1752089966404,0.986,2743.3,2742.9,0.72897]
[1752089966599,1.71488,2743.3,2742.9,0.72896]
[1752089967091,1.71488,2743.3,2742.7,3.2078]
[1752089967092,1.236,2743.4,2742.8,1.82252]
[1752089967292,1.236,2743.4,2742.8,3.06612]
[1752089967501,0.626,2743.5,2742.8,3.06612]
[1752089967697,0.626,2743.5,2743.0,5.03019]
[1752089967896,2.95077,2743.7,2743.4,0.72883]
[1752089968102,1.44034847,2743.6,2743.5,0.72882]
[1752089968595,1.2414617,2743.9,2743.7,0.72876]
[1752089968792,1.44016685,2743.8,2743.6,0.72878]
[1752089968992,1.44016685,2743.7,2743.3,3.2078]
[1752089969198,0.986,2743.8,2743.6,0.72878]
[1752089969393,1.44017662,2743.7,2743.6,0.72878]
[1752089969598,1.44017662,2743.7,2743.3,5.02996]
[1752089969599,2.42617662,2743.7,2743.1,0.611]
[1752089969798,4.64797662,2743.6,2743.5,0.72882]
[1752089970000,1.44017662,2743.6,2743.5,0.72882]
[1752089970403,1.2414617,2743.9,2743.7,0.72876]
[1752089970603,1.42868535,2743.8,2743.3,3.2078]
[1752089970804,1.42868535,2743.7,2743.6,0.72878]
[1752089971104,1.42868535,2743.7,2743.3,6.32586]
[1752089971105,0.986,2743.7,2743.4,0.72883]
[1752089971303,3.05261,2743.6,2743.2,0.7289]
[1752089971503,0.72883,2743.5,2743.1,0.72891]
[1752089971704,2.06666,2743.4,2743.0,0.72894]
[1752089971905,0.72889,2743.3,2742.7,3.2078]
[1752089972103,1.2309,2743.2,2742.7,3.2078]
[1752089972405,5.16762,2743.2,2742.7,3.2078]
[1752089972601,4.4387,2743.2,2743.1,0.72893]
[1752089972809,0.72889,2743.3,2742.7,3.2078]
[1752089973007,0.72889,2743.3,2742.9,0.72897]
[1752089973206,1.2309,2743.2,2743.0,0.72893]
[1752089973406,1.2309,2743.2,2743.1,0.72893]
[1752089974309,3.2078,2743.5,2743.3,0.72886]
[1752089974605,3.2078,2743.5,2743.4,0.72885]
[1752089975003,1.2309,2743.7,2743.6,0.72879]
[1752089975207,0.986,2743.8,2743.7,0.72877]
[1752089976011,0.0054617,2743.9,2743.8,0.72874]
[1752089979305,0.9989617,2743.9,2743.8,0.72874]
[1752089979504,0.0054617,2743.9,2743.8,0.72874]
[1752089979709,0.9935,2744.8,2744.7,0.7285]
[1752089979905,2.3879524,2744.8,2744.7,0.7285]
[1752089980111,2.3879524,2744.8,2744.5,0.72854]
[1752089980112,3.1164424,2744.8,2744.5,0.72854]
[1752089980308,2.3879524,2744.7,2744.6,0.72853]
[1752089980507,1.3944524,2744.7,2744.6,0.72853]
[1752089980708,1.3944524,2744.7,2744.5,0.72854]
[1752089980917,2.02718,2744.8,2744.5,0.72854]
[1752089981206,2.38786986,2744.7,2744.6,0.72853]
[1752089982011,0.9935,2744.7,2744.2,3.2078]
[1752089982311,2.2789,2744.6,2744.3,0.7286]
[1752089982510,2.2789,2744.6,2744.4,0.72857]
[1752089982511,1.2854,2744.6,2744.4,0.72857]
[1752089982711,0.9935,2744.5,2744.4,0.72857]
[1752089982913,0.9935,2744.8,2744.7,0.7285]
[1752089983213,2.37687642,2744.8,2744.7,0.7285]
[1752089984313,2.37687642,2744.8,2744.6,0.72851]
[1752089984514,0.9935,2744.7,2744.5,0.72853]
[1752089984714,0.9935,2744.6,2744.4,0.72857]
[1752089984915,0.9935,2744.5,2744.4,0.72856]
[1752089985115,0.9935,2744.5,2744.4,0.72858]
[1752089986313,0.9935,2744.5,2744.2,3.2078]
[1752089986314,0.9935,2744.5,2744.3,0.72859]
[1752089986519,4.4338,2744.7,2744.4,0.72858]
[1752089986706,3.2078,2745.0,2744.4,1.82141]
[1752089986913,37.807,2745.2,2744.9,0.72843]
[1752089987115,0.9935,2745.1,2744.9,0.72843]
[1752089987417,3.61311044,2745.1,2745.0,0.72842]
[1752089987614,3.61311044,2745.1,2744.9,0.72844]
[1752089987815,1.36791044,2745.0,2744.9,0.72844]
[1752089988020,2.36141044,2745.0,2744.9,0.72844]
[1752089988224,2.36141044,2745.0,2744.2,3.2078]
[1752089988520,4.34156044,2744.9,2744.5,0.72854]
[1752089988817,2.36141044,2744.8,2744.6,0.72852]
[1752089989016,2.61961044,2744.7,2744.6,0.72852]
[1752089989317,3.61311044,2744.7,2744.6,0.72852]
[1752089989515,1.36791044,2744.7,2744.6,0.72852]
[1752089989714,2.58285316,2744.7,2744.2,3.2078]
[1752089989914,2.58285316,2744.6,2744.2,3.2078]
[1752089990218,0.9935,2744.5,2744.2,3.2078]
[1752089990420,1.5824632,2744.4,2744.2,3.2078]
[1752089990614,1.5824632,2744.3,2744.2,3.93643]
[1752089990810,1.5824632,2744.3,2744.2,3.93642]
[1752089991010,0.9935,2744.5,2744.3,0.72861]
[1752089991218,1.58264468,2744.4,2744.2,3.93642]
[1752089991411,0.9935,2744.4,2744.2,3.93642]
[1752089991618,2.3161,2744.4,2744.3,0.72861]
[1752089991922,3.89882709,2744.4,2743.9,4.4985]
[1752089992216,0.9935,2744.3,2744.0,0.72868]
[1752089992419,0.9659,2744.5,2744.4,0.72858]
[1752089992621,1.58290944,2744.5,2744.4,0.72858]
[1752089992921,0.9935,2745.1,2744.9,0.72845]
[1752089993222,3.89652651,2745.0,2744.9,0.72845]
[1752089994517,1.58042651,2745.0,2744.9,0.72845]
[1752089994722,3.26333252,2745.1,2745.0,0.72842]
[1752089994923,4.84421572,2745.1,2745.0,0.72842]
[1752089995122,1.5808832,2745.1,2745.0,0.72842]
[1752089995525,1.5808832,2745.1,2745.0,1.94272]
[1752089995725,3.26023434,2745.1,2745.0,1.94272]
[1752089996127,1.5808832,2745.1,2745.0,1.94272]
[1752089996429,3.26023434,2745.3,2745.2,0.72837]
[1752089996630,1.58090837,2745.3,2745.2,0.72837]
[1752089997025,2.57440837,2745.3,2745.0,0.0054617]
[1752089997231,1.58090837,2745.2,2745.1,0.72839]
[1752089997425,3.26023434,2745.5,2745.3,0.72831]
[1752089997631,4.84345629,2745.4,2745.1,1.82099]
[1752089997830,1.582769,2745.3,2745.2,0.72837]
[1752089998837,1.582769,2745.3,2745.2,2.00887]
[1752089999029,1.582769,2745.3,2745.2,7.00887]
[1752089999232,3.260678,2745.8,2745.7,0.72823]
[1752089999431,4.35147315,2746.1,2746.0,0.72815]
[1752089999729,5.34497315,2746.4,2746.0,1.82039]
[1752089999932,0.9935,2746.4,2746.3,0.72807]
[1752090000531,4.35147315,2746.6,2746.4,0.72805]
[1752090000730,10.79336007,2747.2,2746.8,0.72794]
[1752090000925,5.43180194,2747.2,2747.1,0.72786]
[1752090001129,5.43180194,2747.3,2746.8,1.81986]
[1752090001346,0.9935,2747.4,2747.2,0.72782]
[1752090001533,0.9935,2747.4,2746.8,1.81986]
[1752090001534,4.5049,2747.3,2746.8,0.72793]
[1752090001734,5.4401,2747.3,2746.9,0.56495863]
[1752090001934,5.4401,2747.3,2747.0,0.56495863]
[1752090002133,0.9935,2747.2,2747.1,0.56495863]
[1752090002329,4.90504875,2747.2,2746.0,3.2078]
[1752090002536,3.2078,2746.7,2746.0,3.2078]
[1752090002740,3.2078,2746.7,2746.6,0.72799]
[1752090002935,4.2013,2746.7,2746.6,0.72799]
[1752090003242,4.2013,2746.7,2746.3,0.72807]
[1752090003435,4.2013,2746.7,2746.0,5.4079]
[1752090003436,2.3342,2746.6,2746.0,5.4079]
[1752090003636,2.3342,2746.6,2746.5,0.72802]
[1752090003837,1.3407,2746.6,2746.5,0.72802]
[1752090004034,0.9935,2746.8,2746.7,0.72797]
[1752090004234,0.9935,2746.8,2746.3,3.2078]
[1752090004539,0.9935,2746.8,2746.7,0.72797]
[1752090004935,0.9935,2746.8,2746.4,1.2587]
[1752090005136,0.9935,2746.8,2746.7,0.72797]
[1752090006942,0.9935,2746.8,2746.7,2.06857]
[1752090007343,4.4407,2747.5,2746.8,1.81981]
[1752090007544,4.4407,2747.5,2747.4,0.72778]
[1752090007741,4.4407,2747.5,2747.3,0.7278]
[1752090007940,3.2078,2747.5,2747.4,0.72778]
[1752090008344,4.4407,2747.5,2747.4,0.72778]
[1752090008742,3.2078,2747.5,2747.4,0.72778]
[1752090009436,4.4305,2747.8,2747.2,2.61444875]
[1752090009638,71.769,2748.1,2747.5,1.81936]
[1752090009837,71.769,2748.1,2747.3,4.43397875]
[1752090010040,1.2227,2748.0,2747.4,1.81946]
[1752090010237,1.2227,2748.0,2747.9,0.72765]
[1752090010448,5.43180194,2748.3,2748.2,0.72757]
[1752090010648,5.43180194,2748.4,2748.2,0.72757]
[1752090010848,2.1787,2748.3,2747.5,1.014]
[1752090011048,4.33424413,2748.1,2747.8,0.72765]
[1752090011246,74.54596156,2748.0,2747.9,0.72765]
[1752090011543,0.69476156,2748.0,2747.9,4.91405]
[1752090011742,5.41780516,2748.6,2747.9,4.91405]
[1752090011743,5.41780516,2748.7,2748.6,0.72746]
[1752090012140,0.956,2748.7,2748.1,1.2399]
[1752090012340,0.956,2748.7,2748.5,0.72748]
[1752090012341,5.61566362,2748.6,2748.5,0.72748]
[1752090012640,5.61566362,2748.6,2748.0,2.83304]
[1752090012641,5.28336362,2748.6,2748.0,1.014]
[1752090012841,1.2883,2748.5,2747.9,3.2078]
[1752090013041,6.57166362,2748.5,2748.0,0.7276]
[1752090013242,0.956,2748.4,2747.7,1.81927]
[1752090013441,1.2883,2748.3,2747.6,3.2078]
[1752090013756,37.2863,2748.3,2747.7,1.81927]
[1752090014056,1.2883,2748.3,2748.2,0.72757]
[1752090014349,2.2443,2748.3,2748.1,0.72758]
[1752090014551,36.946,2748.2,2747.9,0.72763]
[1752090014751,1.2261,2748.1,2748.0,0.72762]
[1752090014948,2.1821,2748.1,2747.6,3.2078]
[1752090015252,3.2078,2748.3,2747.8,4.43364875]
[1752090015449,35.951,2748.1,2747.8,4.43364875]
[1752090015654,35.951,2748.1,2748.0,0.72762]
[1752090015855,3.2078,2748.3,2748.1,0.72758]
[1752090016150,0.956,2748.2,2747.6,5.02709]
[1752090016355,38.0751,2748.2,2747.9,0.72763]
[1752090016552,39.2202,2748.2,2747.8,0.72766]
[1752090016746,39.2202,2748.2,2747.6,3.2078]
[1752090016946,39.2202,2748.2,2748.1,0.7276]
[1752090017154,39.2202,2748.2,2748.1,0.5456197]
[1752090017353,3.3272,2748.2,2748.1,0.5456197]
[1752090017550,3.3272,2748.2,2748.1,0.3636394]
[1752090017754,7.53516362,2748.6,2747.6,5.82224875]
[1752090017955,5.28336362,2748.7,2747.7,1.2923]
[1752090018156,10.70116878,2749.3,2748.5,5.82224875]
[1752090018356,0.956,2749.3,2748.6,0.72746]
[1752090018546,0.956,2749.3,2748.5,3.2078]
[1752090018752,0.956,2749.3,2748.6,1.2923]
[1752090018952,2.1011,2749.3,2749.2,0.72731]
[1752090019152,36.051,2749.3,2748.8,3.2078]
[1752090019354,36.051,2749.3,2748.9,1.2923]
[1752090019553,3.23251588,2749.4,2748.9,1.2923]
[1752090019759,4.18851588,2749.3,2748.8,3.2078]
[1752090019959,3.23251588,2749.2,2749.0,0.72736]
[1752090020156,3.23251588,2749.2,2748.8,3.2078]
[1752090020460,3.23251588,2749.1,2748.8,3.2078]
[1752090020662,3.23251588,2748.9,2748.4,3.2078]
[1752090020857,75.32851588,2748.8,2748.4,3.2078]
[1752090021062,75.32851588,2748.8,2748.4,3.93531]
[1752090021266,4.18851588,2748.7,2748.4,3.2078]
[1752090021453,3.23251588,2748.6,2748.4,3.2078]
[1752090021660,2.2911,2748.5,2748.4,3.2078]
[1752090021854,2.2911,2748.5,2747.8,3.93546]
[1752090022158,3.23378257,2748.2,2748.0,0.7276]
[1752090022361,3.23378257,2748.2,2748.1,3.9354]
[1752090022568,3.23378257,2748.5,2748.4,0.72752]
[1752090022762,9.87666007,2749.2,2748.5,0.72749]
[1752090022763,3.23378257,2748.6,2748.5,0.72749]
[1752090023468,4.32736362,2748.8,2748.2,3.13073]
[1752090023670,4.32736362,2748.8,2748.7,0.72744]
[1752090023865,4.67452953,2748.8,2748.7,3.59164875]
[1752090024068,1.43935644,2748.8,2748.7,12.52688875]
[1752090024261,6.44e-06,2748.8,2748.7,7.52688875]
[1752090024468,3.23517309,2748.9,2748.8,0.72741]
[1752090024666,3.23517309,2749.1,2749.0,0.72736]
[1752090024862,4.32736362,2749.3,2749.0,0.72734]
[1752090025161,4.32736362,2749.1,2749.0,0.72734]
[1752090025470,4.32736362,2749.2,2749.1,0.72733]
[1752090025671,4.32736362,2749.3,2749.2,0.72731]
[1752090025972,4.32736362,2749.3,2748.9,1.0903]
[1752090026170,3.2376491,2749.0,2748.9,1.81769]
[1752090026369,4.32736362,2749.3,2748.9,2.0675]
[1752090026569,4.32736362,2749.4,2749.3,0.72728]
[1752090026774,4.32736362,2749.6,2749.5,0.72723]
[1752090026964,13.00336523,2750.0,2749.9,0.72712]
[1752090027272,41.34380516,2750.3,2750.2,0.72704]
[1752090027472,5.41780516,2750.3,2750.2,0.72704]
[1752090027862,52.419,2750.8,2750.3,0.72702]
[1752090027863,5.41780516,2750.4,2750.3,0.72702]
[1752090028070,7.58556007,2750.7,2750.6,0.72694]
[1752090028369,39.1348,2751.0,2750.3,1.29]
[1752090028573,3.2078,2751.0,2750.9,0.72686]
[1752090029672,3.2078,2751.0,2750.8,0.72687]
[1752090029869,3.2078,2751.0,2750.9,0.72686]
[1752090030069,39.1688,2751.0,2750.9,0.72686]
[1752090030264,39.1688,2751.0,2750.9,0.47586245]
[1752090030468,44.1688,2751.0,2749.7,5.02568]
[1752090030664,37.2844,2750.9,2750.1,1.81768]
[1752090030872,7.58556007,2750.7,2750.6,0.72694]
[1752090031268,7.58556007,2750.9,2750.8,0.72688]
[1752090031669,3.2078,2751.0,2750.9,0.72686]
[1752090032874,4.1638,2751.0,2750.7,0.7269]
[1752090033176,1.262,2750.9,2750.4,3.2078]
[1752090033377,3.23253149,2750.5,2750.0,4.5226]
[1752090033579,35.995,2750.5,2750.4,0.72699]
[1752090033773,1.262,2750.9,2750.2,1.81761]
[1752090033975,3.23227525,2750.4,2750.1,1.81766]
[1752090034182,3.23227525,2750.4,2750.3,0.72702]
[1752090034378,37.252,2750.9,2750.4,0.72699]
[1752090034572,0.956,2750.8,2750.0,4.2908]
[1752090034776,3.23251915,2750.4,2750.3,0.72699]
[1752090035073,3.23251915,2750.5,2750.4,0.72699]
[1752090035276,2.61444875,2750.5,2750.0,3.93488]
[1752090035479,39.3905,2750.4,2749.7,3.2078]
[1752090035676,3.23353842,2750.0,2749.9,0.7271]
[1752090036271,4.61751537,2750.0,2749.9,0.7271]
[1752090036471,2.1275,2750.4,2749.7,3.2078]
[1752090036676,8.54156007,2750.9,2750.1,3.2078]
[1752090036880,8.54156007,2750.9,2749.9,1.81778]
[1752090036881,7.58556007,2751.1,2751.0,0.72683]
[1752090037075,7.58556007,2751.1,2750.4,3.2078]
[1752090037281,3.36629509,2751.9,2751.2,5.2288975]
[1752090037479,17.24601668,2755.0,2752.7,3.2078]
[1752090037781,8.65013731,2756.6,2755.5,3.2078]
[1752090037973,28.8264284,2756.7,2756.5,0.06966992]
[1752090038174,6.8974284,2756.7,2756.5,2.61596195]
[1752090038483,91.4,2757.3,2756.4,3.2078]
[1752090038686,91.4,2757.3,2756.8,2.61444875]
[1752090038879,3.564634,2758.7,2757.0,3.2078]
[1752090039184,27.6,2763.8,2755.0,52.39]
[1752090039185,28.2214392,2757.5,2757.4,7.54838054]
[1752090039378,28.2214392,2757.5,2757.4,3.93294]
[1752090039379,4.62336341,2757.5,2757.4,3.93294]
[1752090039577,52.39,2758.2,2756.5,3.61544054]
[1752090039774,92.042,2758.1,2756.4,3.61544054]
[1752090039978,1.3176,2758.1,2757.3,0.72516]
[1752090040184,92.028,2758.0,2756.8,3.2078]
[1752090040483,3.2078,2757.2,2756.5,3.2078]
[1752090040686,145.6106,2757.1,2756.7,3.2078]
[1752090040882,1.3176,2757.1,2757.0,0.72525]
[1752090041082,27.2745,2757.1,2757.0,3.93305]
[1752090041387,3.61544054,2758.8,2757.0,4.80434054]
[1752090041388,3.2078,2758.7,2757.0,4.80434054]
[1752090041584,25.0,2758.8,2757.9,3.2078]
[1752090041883,25.0,2758.8,2756.8,12.78047835]
[1752090041884,25.0,2758.8,2757.6,3.2078]
[1752090042075,3.2078,2759.4,2758.0,3.2078]
[1752090042282,3.2078,2759.4,2758.3,3.2078]
[1752090042480,3.2078,2759.1,2757.7,3.2078]
[1752090042684,25.0,2759.4,2758.0,3.2078]
[1752090042885,25.0,2759.4,2758.2,0.72491]
[1752090043090,25.72463,2759.4,2758.0,3.2078]
[1752090043282,0.72482,2758.7,2757.7,3.93286]
[1752090043489,0.9569,2758.6,2758.4,0.00544149]
[1752090043787,6.82324054,2758.5,2757.1,3.2078]
[1752090043983,3.2078,2757.4,2756.6,12.78047835]
[1752090044182,3.2078,2757.4,2756.6,23.83895276]
[1752090044383,3.2078,2757.1,2756.5,16.38367372]
[1752090044587,3.2078,2756.8,2756.5,14.36307372]
[1752090044779,3.61544054,2756.7,2755.4,3.2078]
[1752090045089,3.61544054,2756.7,2754.6,3.61544054]
[1752090045090,3.2078,2756.4,2755.8,3.2078]
[1752090045281,3.2078,2756.4,2755.9,2.17843922]
[1752090045587,3.2078,2756.4,2756.0,2.17843922]
[1752090045785,3.2078,2756.5,2756.1,2.17843922]
[1752090045977,0.00544149,2756.9,2756.2,2.17843922]
[1752090046183,3.2078,2756.8,2756.3,2.17843922]
[1752090046388,0.00544149,2756.9,2754.8,3.2078]
[1752090046389,6.82324054,2756.5,2754.8,3.2078]
[1752090046582,3.2078,2756.0,2754.8,3.2078]
[1752090046779,3.2078,2755.5,2755.0,0.72577]
[1752090046980,1.2954,2755.4,2755.3,0.7257]
[1752090047183,0.72542,2756.4,2755.6,0.72561]
[1752090047488,0.00544149,2755.6,2755.0,3.2078]
[1752090047790,0.00544149,2755.6,2755.5,0.72564]
[1752090047988,0.96234149,2755.6,2755.5,0.72564]
[1752090048184,0.96234149,2755.6,2755.4,0.72567]
[1752090048389,3.2078,2756.4,2755.4,0.72567]
[1752090048390,0.9569,2755.5,2755.4,0.72567]
[1752090048591,0.9569,2755.5,2755.4,3.2078]
[1752090048988,0.9569,2755.5,2755.4,3.93347]
[1752090049387,0.9569,2756.2,2755.4,3.2078]
[1752090049590,3.2078,2756.1,2755.5,3.2078]
[1752090049780,0.9569,2756.0,2755.5,3.2078]
[1752090050184,0.72562,2755.6,2755.5,3.2078]
[1752090050383,0.9569,2755.6,2755.5,3.2078]
[1752090050790,5.9569,2755.6,2754.8,3.2078]
[1752090051082,3.2078,2756.0,2754.4,4.5262]
[1752090051287,3.2078,2756.0,2755.0,3.2078]
[1752090051288,0.9569,2755.5,2755.0,3.2078]
[1752090051480,0.9569,2755.4,2755.3,3.2078]
[1752090051683,0.9569,2755.4,2755.3,3.9335]
[1752090052187,0.9569,2755.8,2755.7,0.72558]
[1752090052390,3.2078,2756.8,2755.7,3.2078]
[1752090052890,1.3202,2756.7,2755.7,3.2078]
[1752090053091,0.72541,2756.4,2755.7,3.2078]
[1752090053292,2.04564,2756.3,2755.8,0.72555]
[1752090053485,1.3202,2756.3,2755.5,0.72563]
[1752090053686,0.72553,2756.0,2755.4,3.2078]
[1752090053887,1.3202,2755.9,2755.4,3.2078]
[1752090054089,1.3202,2755.9,2755.8,3.2078]
[1752090054287,1.3202,2755.9,2755.5,0.72564]
[1752090054288,2.2771,2755.9,2755.5,0.72564]
[1752090054488,0.9569,2755.8,2755.5,7.2154482]
[1752090054793,2.2597,2755.7,2755.5,0.72563]
[1752090054992,0.9569,2755.6,2755.4,3.2078]
[1752090055192,0.9569,2755.6,2755.5,0.72564]
[1752090055589,3.2078,2756.2,2755.5,7.2154482]
[1752090055888,3.2078,2756.2,2755.7,3.2078]
[1752090056187,52.291,2756.6,2755.8,7.2154482]
[1752090056489,3.93322,2756.4,2755.5,3.2078]
[1752090056688,3.93322,2756.4,2755.6,1.814]
[1752090056689,3.2078,2756.4,2755.6,1.814]
[1752090056990,3.2078,2756.7,2755.9,3.2078]
[1752090057192,48.96403147,2756.8,2756.6,7.23799181]
[1752090057391,0.72533,2756.7,2756.6,7.23799181]
[1752090057587,0.72533,2756.7,2756.3,3.2078]
[1752090057588,48.96403147,2756.8,2756.3,3.2078]
[1752090057787,1.084,2757.3,2756.7,7.24037857]
[1752090057993,0.72525,2757.0,2756.9,9.3086713]
[1752090058387,5.9569,2757.0,2756.9,2.1780024]
[1752090058583,6.68215,2757.0,2756.9,2.1780024]
[1752090058995,6.68215,2757.0,2756.9,11.48751143]
[1752090059290,1.68215,2757.0,2756.9,11.48751143]
[1752090059491,1.68215,2757.0,2756.9,7.34995186]
[1752090059686,1.68215,2757.0,2756.9,2.1780024]
[1752090060090,0.9569,2757.0,2756.9,2.1780024]
[1752090060292,1.68215,2757.0,2756.9,2.1780024]
[1752090060692,0.72535,2756.7,2756.4,3.2078]
[1752090060893,0.9569,2757.0,2756.5,2.17796512]
[1752090061198,0.72541,2756.4,2756.3,8.39810712]
[1752090061491,38.97730777,2756.4,2756.3,8.39810712]
[1752090061691,43.97730777,2756.4,2756.3,7.65294712]
[1752090061893,43.97730777,2756.4,2756.3,3.95801712]
[1752090062087,0.72554,2755.9,2755.8,3.2078]
[1752090062289,45.47054,2755.9,2755.8,3.2078]
[1752090062492,45.47054,2755.9,2755.4,3.2078]
[1752090062493,46.55887,2755.9,2755.4,3.2078]
[1752090062687,52.283,2756.1,2755.4,3.2078]
[1752090062887,0.72564,2755.5,2755.4,3.2078]
[1752090063086,0.72573,2755.2,2755.1,3.2078]
[1752090063299,0.72572,2755.2,2755.1,3.2078]
[1752090063686,1.8139,2755.9,2755.1,3.2078]
[1752090063893,1.81351,2756.5,2755.6,3.2078]
[1752090064092,0.72557,2755.8,2755.5,0.72563]
[1752090064294,0.72555,2755.9,2755.6,0.72561]
[1752090064494,0.72563,2755.6,2755.3,0.72569]
[1752090064687,0.72567,2755.5,2755.3,1.243]
[1752090064888,1.81366,2756.2,2755.3,6.243]
[1752090065088,3.2078,2756.3,2755.3,6.243]
[1752090065298,0.0022,2756.6,2755.8,3.2078]
[1752090065595,0.72757,2756.6,2756.3,0.72543]
[1752090065997,3.93308,2756.9,2756.6,0.72533]
[1752090066191,0.72528,2756.9,2756.6,0.72533]
[1752090066387,3.2078,2757.6,2756.8,3.2078]
[1752090066588,52.6801,2757.5,2756.8,3.2078]
[1752090066799,52.284,2757.4,2757.0,0.72523]
[1752090067001,0.72528,2756.9,2756.6,5.18643]
[1752090067203,52.284,2757.4,2756.7,1.2533]
[1752090067391,44.87619,2757.3,2757.0,3.93304]
[1752090067596,44.87618,2757.3,2757.0,3.2078]
[1752090067896,0.7252,2757.2,2757.0,3.93305]
[1752090068201,44.072,2757.2,2757.0,3.2078]
[1752090068398,0.72522,2757.1,2757.0,3.2078]
[1752090068597,0.72529,2756.9,2756.7,1.2533]
[1752090068798,0.72537,2756.6,2756.5,3.2078]
[1752090068999,44.68537,2756.6,2756.5,3.2078]
[1752090069303,0.72543,2756.3,2756.2,3.2078]
[1752090069600,43.96,2756.6,2756.2,3.2078]
[1752090069800,43.96,2756.6,2756.3,1.2768]
[1752090070103,0.72541,2756.4,2756.3,1.2768]
[1752090070292,43.96,2756.6,2756.2,3.2078]
[1752090070293,0.72543,2756.3,2756.2,3.2078]
[1752090070497,43.773,2756.3,2756.2,3.2078]
[1752090070697,44.49843,2756.3,2756.2,3.2078]
[1752090071302,0.72543,2756.3,2756.2,3.2078]
[1752090071503,44.39043,2756.3,2756.2,3.2078]
[1752090071896,95.941,2756.3,2755.9,3.2078]
[1752090072101,0.72554,2755.9,2755.8,1.2768]
[1752090072304,1.81365,2756.2,2755.5,3.2078]
[1752090072504,86.85499259,2756.3,2755.5,3.2078]
[1752090072705,0.72559,2755.7,2755.6,7.36188467]
[1752090072901,44.21759,2755.7,2755.6,7.36188467]
[1752090073199,1.81365,2756.2,2755.6,7.36033319]
[1752090073405,43.439,2756.1,2755.6,10.56813319]
[1752090073706,43.403,2756.0,2755.7,1.2314]
[1752090074001,0.72556,2755.8,2755.7,1.2314]
[1752090074198,0.72555,2755.9,2755.7,1.95699]
[1752090074398,1.81329,2756.8,2755.8,1.2314]
[1752090074699,0.72543,2756.3,2756.2,3.2078]
[1752090075098,43.231,2756.3,2756.2,3.2078]